[Event "Titled Tuesday Blitz January 10 Early 2023"]
[White "Dinu, Dumitru-Daniel"]
[Black "Tuleyeva-Aketayeva, Dana"]
[WhiteFideId "1208403"]
[BlackFideId "13701932"]
[WhiteElo "2203"]
[BlackElo "2130"]
[Result "1-0"]
[Round "05"]
[TimeControl "180+2"]
[Date "2023.01.10"]
[WhiteClock "0:00:17"]
[BlackClock "0:00:02"]

1. e4 {[%clk 0:03:00]}  c5 {[%clk 0:02:09]} 2. Be2 {[%clk 0:02:59]}  Nc6 {[%clk 0:02:09]} 3. f4 {[%clk 0:02:58]}  g6 {[%clk 0:02:08]} 4. d3 {[%clk 0:02:58]}  Bg7 {[%clk 0:02:08]} 5. Nf3 {[%clk 0:02:58]}  d6 {[%clk 0:02:06]} 6. O-O {[%clk 0:02:58]}  Nf6 {[%clk 0:02:06]} 7. Qe1 {[%clk 0:02:58]}  O-O {[%clk 0:02:07]} 8. Qh4 {[%clk 0:02:58]}  Bg4 {[%clk 0:01:56]} 9. c3 {[%clk 0:02:48]}  b5 {[%clk 0:01:49]} 10. e5 {[%clk 0:02:44]}  dxe5 {[%clk 0:01:44]} 11. fxe5 {[%clk 0:02:43]}  Nxe5 {[%clk 0:01:41]} 12. Nxe5 {[%clk 0:02:41]}  Bxe2 {[%clk 0:01:40]} 13. Re1 {[%clk 0:02:39]}  Bxd3 {[%clk 0:01:12]} 14. Nc6 {[%clk 0:02:21]}  Qd7 {[%clk 0:00:38]} 15. Nxe7+ {[%clk 0:02:17]}  Kh8 {[%clk 0:00:38]} 16. Bh6 {[%clk 0:01:34]}  Rae8 {[%clk 0:00:23]} 17. Nd2 {[%clk 0:01:03]}  Rxe7 {[%clk 0:00:20]} 18. Rxe7 {[%clk 0:01:03]}  Qxe7 {[%clk 0:00:20]} 19. Re1 {[%clk 0:01:03]}  Qd8 {[%clk 0:00:15]} 20. Bg5 {[%clk 0:00:58]}  Bf5 {[%clk 0:00:08]} 21. Nf3 {[%clk 0:00:54]}  b4 {[%clk 0:00:06]} 22. cxb4 {[%clk 0:00:47]}  cxb4 {[%clk 0:00:06]} 23. Nd4 {[%clk 0:00:47]}  Qb6 {[%clk 0:00:07]} 24. Kh1 {[%clk 0:00:45]}  Bd7 {[%clk 0:00:06]} 25. Rf1 {[%clk 0:00:39]}  Ne4 {[%clk 0:00:04]} 26. Qxe4 {[%clk 0:00:28]}  Qxd4 {[%clk 0:00:04]} 27. Qxd4 {[%clk 0:00:20]}  Bxd4 {[%clk 0:00:04]} 28. Rd1 {[%clk 0:00:20]}  f6 {[%clk 0:00:03]} 29. Bh6 {[%clk 0:00:18]}  Re8 {[%clk 0:00:03]} 30. h3 {[%clk 0:00:18]}  Bf5 {[%clk 0:00:02]} 31. Rxd4 {[%clk 0:00:17]}  Re1+ {[%clk 0:00:02]} 32. Kh2 {[%clk 0:00:17]}  Kg8 {[%clk 0:00:02]} 33. Rd8+ {[%clk 0:00:17]}  Kf7 {[%clk 0:00:03]} 34. Rf8+ {[%clk 0:00:17]}  Ke6 {[%clk 0:00:02]} 35. Re8+ {[%clk 0:00:17]}  Kf7 {[%clk 0:00:02]} 36. Rxe1 {[%clk 0:00:17]} 1-0


[Site "https://www.chess.com"]

[Event "Titled Tuesday Blitz January 10 Early 2023"]
[White "Sargissyan, Sargis"]
[Black "Adam, Ernestina"]
[WhiteFideId "13303210"]
[BlackFideId "165883"]
[WhiteElo "2234"]
[BlackElo "2040"]
[Result "0-1"]
[Round "05"]
[TimeControl "180+2"]
[Date "2023.01.10"]
[WhiteClock "0:00:08"]
[BlackClock "0:00:44"]

1. e4 {[%clk 0:02:57]}  c6 {[%clk 0:02:59]} 2. Nf3 {[%clk 0:02:51]}  d5 {[%clk 0:02:59]} 3. Nc3 {[%clk 0:02:52]}  Bg4 {[%clk 0:02:58]} 4. h3 {[%clk 0:02:52]}  Bxf3 {[%clk 0:02:58]} 5. Qxf3 {[%clk 0:02:53]}  e6 {[%clk 0:02:59]} 6. Be2 {[%clk 0:02:52]}  Nf6 {[%clk 0:02:52]} 7. O-O {[%clk 0:02:43]}  Nbd7 {[%clk 0:02:41]} 8. d4 {[%clk 0:02:37]}  dxe4 {[%clk 0:02:37]} 9. Nxe4 {[%clk 0:02:37]}  Nxe4 {[%clk 0:02:36]} 10. Qxe4 {[%clk 0:02:38]}  Nf6 {[%clk 0:02:36]} 11. Qh4 {[%clk 0:02:36]}  Be7 {[%clk 0:02:34]} 12. c3 {[%clk 0:02:28]}  O-O {[%clk 0:02:25]} 13. Bd3 {[%clk 0:02:24]}  c5 {[%clk 0:02:17]} 14. Bg5 {[%clk 0:02:21]}  h6 {[%clk 0:02:15]} 15. Bxf6 {[%clk 0:01:45]}  Bxf6 {[%clk 0:02:12]} 16. Qe4 {[%clk 0:01:44]}  g6 {[%clk 0:02:09]} 17. dxc5 {[%clk 0:01:37]}  Qc7 {[%clk 0:02:07]} 18. b4 {[%clk 0:01:23]}  Bxc3 {[%clk 0:02:02]} 19. Rac1 {[%clk 0:01:23]}  Bg7 {[%clk 0:02:00]} 20. Rfd1 {[%clk 0:01:10]}  Rfd8 {[%clk 0:01:52]} 21. Be2 {[%clk 0:01:09]}  Rxd1+ {[%clk 0:01:46]} 22. Rxd1 {[%clk 0:01:09]}  Rd8 {[%clk 0:01:37]} 23. Rxd8+ {[%clk 0:00:55]}  Qxd8 {[%clk 0:01:38]} 24. Qxb7 {[%clk 0:00:47]}  Qd2 {[%clk 0:01:36]} 25. Qa8+ {[%clk 0:00:34]}  Kh7 {[%clk 0:01:35]} 26. Qe4 {[%clk 0:00:35]}  Qe1+ {[%clk 0:01:18]} 27. Kh2 {[%clk 0:00:34]}  Qxf2 {[%clk 0:01:17]} 28. c6 {[%clk 0:00:17]}  Bd4 {[%clk 0:01:05]} 29. c7 {[%clk 0:00:11]}  Qg1+ {[%clk 0:01:04]} 30. Kg3 {[%clk 0:00:11]}  Qf2+ {[%clk 0:01:02]} 31. Kh2 {[%clk 0:00:12]}  Qg1+ {[%clk 0:00:54]} 32. Kg3 {[%clk 0:00:12]}  Qe1+ {[%clk 0:00:46]} 33. Kh2 {[%clk 0:00:12]}  Bg1+ {[%clk 0:00:45]} 34. Kh1 {[%clk 0:00:08]}  Bf2+ {[%clk 0:00:44]} 0-1


[Site "https://www.chess.com"]

[Event "Titled Tuesday Blitz January 10 Early 2023"]
[White "Liu, Casper"]
[Black "Vargas, Mauricio"]
[WhiteFideId "1454153"]
[BlackFideId "4404572"]
[WhiteElo "2278"]
[BlackElo "2035"]
[Result "1-0"]
[Round "05"]
[TimeControl "180+2"]
[Date "2023.01.10"]
[WhiteClock "0:02:11"]
[BlackClock "0:00:02"]

1. e4 {[%clk 0:02:57]}  c6 {[%clk 0:03:00]} 2. d4 {[%clk 0:02:53]}  d5 {[%clk 0:03:01]} 3. Nc3 {[%clk 0:02:52]}  dxe4 {[%clk 0:03:00]} 4. Nxe4 {[%clk 0:02:53]}  Nf6 {[%clk 0:03:01]} 5. Nxf6+ {[%clk 0:02:53]}  exf6 {[%clk 0:03:02]} 6. Bd3 {[%clk 0:02:52]}  Bd6 {[%clk 0:03:02]} 7. c3 {[%clk 0:02:51]}  O-O {[%clk 0:03:02]} 8. Qc2 {[%clk 0:02:51]}  Re8+ {[%clk 0:03:01]} 9. Ne2 {[%clk 0:02:52]}  h6 {[%clk 0:02:59]} 10. Be3 {[%clk 0:02:53]}  Bg4 {[%clk 0:02:55]} 11. O-O-O {[%clk 0:02:51]}  b5 {[%clk 0:02:52]} 12. h3 {[%clk 0:02:50]}  Be6 {[%clk 0:02:50]} 13. g4 {[%clk 0:02:49]}  Qa5 {[%clk 0:02:34]} 14. b3 {[%clk 0:02:46]}  Ba3+ {[%clk 0:02:30]} 15. Kb1 {[%clk 0:02:44]}  Nd7 {[%clk 0:01:57]} 16. Nf4 {[%clk 0:02:44]}  Nb6 {[%clk 0:01:38]} 17. h4 {[%clk 0:02:43]}  Nd5 {[%clk 0:01:19]} 18. Nxd5 {[%clk 0:02:40]}  Bxd5 {[%clk 0:01:15]} 19. Rhg1 {[%clk 0:02:36]}  Rac8 {[%clk 0:01:00]} 20. g5 {[%clk 0:02:35]}  fxg5 {[%clk 0:00:57]} 21. hxg5 {[%clk 0:02:35]}  h5 {[%clk 0:00:56]} 22. g6 {[%clk 0:02:30]}  fxg6 {[%clk 0:00:20]} 23. Bxg6 {[%clk 0:02:29]}  Re6 {[%clk 0:00:17]} 24. Bh7+ {[%clk 0:02:23]}  Kh8 {[%clk 0:00:16]} 25. Rxg7 {[%clk 0:02:22]}  Kxg7 {[%clk 0:00:12]} 26. Rg1+ {[%clk 0:02:23]}  Kh8 {[%clk 0:00:02]} 27. Bf4 {[%clk 0:02:11]} 1-0


[Site "https://www.chess.com"]

[Event "Titled Tuesday Blitz January 10 Early 2023"]
[White "Ivanova, Karina"]
[Black "Topalov, Aleksandar"]
[WhiteFideId "24139750"]
[BlackFideId "925659"]
[WhiteElo "2085"]
[BlackElo "2233"]
[Result "0-1"]
[Round "05"]
[TimeControl "180+2"]
[Date "2023.01.10"]
[WhiteClock "0:00:04"]
[BlackClock "0:00:17"]

1. Nf3 {[%clk 0:02:59]}  Nf6 {[%clk 0:02:59]} 2. g3 {[%clk 0:02:58]}  g6 {[%clk 0:02:59]} 3. Bg2 {[%clk 0:02:58]}  Bg7 {[%clk 0:02:59]} 4. O-O {[%clk 0:02:58]}  O-O {[%clk 0:03:00]} 5. d4 {[%clk 0:02:57]}  c5 {[%clk 0:02:57]} 6. c4 {[%clk 0:02:57]}  cxd4 {[%clk 0:02:56]} 7. Nxd4 {[%clk 0:02:56]}  Nc6 {[%clk 0:02:56]} 8. Nc3 {[%clk 0:02:56]}  Nxd4 {[%clk 0:02:55]} 9. Qxd4 {[%clk 0:02:56]}  d6 {[%clk 0:02:54]} 10. b3 {[%clk 0:02:51]}  a6 {[%clk 0:02:51]} 11. Bb2 {[%clk 0:02:51]}  Rb8 {[%clk 0:02:50]} 12. a4 {[%clk 0:02:44]}  Bd7 {[%clk 0:02:48]} 13. Rfb1 {[%clk 0:02:25]}  Bc6 {[%clk 0:02:47]} 14. Nd5 {[%clk 0:02:16]}  Bxd5 {[%clk 0:01:55]} 15. Bxd5 {[%clk 0:02:14]}  a5 {[%clk 0:01:52]} 16. Qd2 {[%clk 0:02:02]}  Nxd5 {[%clk 0:01:41]} 17. Bxg7 {[%clk 0:02:01]}  Kxg7 {[%clk 0:01:40]} 18. Qxd5 {[%clk 0:01:48]}  Qb6 {[%clk 0:01:39]} 19. Qb5 {[%clk 0:01:42]}  Qc7 {[%clk 0:00:57]} 20. b4 {[%clk 0:01:33]}  b6 {[%clk 0:00:56]} 21. Qd5 {[%clk 0:01:28]}  Rfc8 {[%clk 0:00:54]} 22. bxa5 {[%clk 0:01:14]}  bxa5 {[%clk 0:00:54]} 23. Rxb8 {[%clk 0:01:07]}  Rxb8 {[%clk 0:00:53]} 24. Rc1 {[%clk 0:00:59]}  Qc5 {[%clk 0:00:46]} 25. Qe4 {[%clk 0:00:40]}  e6 {[%clk 0:00:27]} 26. Qd3 {[%clk 0:00:38]}  Rb4 {[%clk 0:00:27]} 27. Qc3+ {[%clk 0:00:38]}  Kg8 {[%clk 0:00:26]} 28. Qc2 {[%clk 0:00:37]}  Qb6 {[%clk 0:00:20]} 29. c5 {[%clk 0:00:31]}  dxc5 {[%clk 0:00:19]} 30. Qxc5 {[%clk 0:00:31]}  Qxc5 {[%clk 0:00:20]} 31. Rxc5 {[%clk 0:00:25]}  Rxa4 {[%clk 0:00:20]} 32. Rc8+ {[%clk 0:00:25]}  Kg7 {[%clk 0:00:20]} 33. Ra8 {[%clk 0:00:25]}  h5 {[%clk 0:00:19]} 34. h4 {[%clk 0:00:25]}  Ra2 {[%clk 0:00:19]} 35. Kg2 {[%clk 0:00:23]}  e5 {[%clk 0:00:19]} 36. e4 {[%clk 0:00:21]}  a4 {[%clk 0:00:17]} 37. Ra6 {[%clk 0:00:20]}  a3 {[%clk 0:00:16]} 38. Kf3 {[%clk 0:00:19]}  Ra1 {[%clk 0:00:16]} 39. Ra5 {[%clk 0:00:18]}  a2 {[%clk 0:00:16]} 40. Ra8 {[%clk 0:00:16]}  Kf6 {[%clk 0:00:16]} 41. Ra6+ {[%clk 0:00:16]}  Ke7 {[%clk 0:00:16]} 42. Ra7+ {[%clk 0:00:16]}  Kd6 {[%clk 0:00:16]} 43. Ra6+ {[%clk 0:00:14]}  Kc5 {[%clk 0:00:16]} 44. Ra8 {[%clk 0:00:15]}  Kd4 {[%clk 0:00:16]} 45. Ra4+ {[%clk 0:00:14]}  Kd3 {[%clk 0:00:16]} 46. Ra3+ {[%clk 0:00:14]}  Kd2 {[%clk 0:00:17]} 47. Ra8 {[%clk 0:00:13]}  Ke1 {[%clk 0:00:17]} 48. Ke3 {[%clk 0:00:11]}  Kf1 {[%clk 0:00:17]} 49. Ra5 {[%clk 0:00:06]}  Re1+ {[%clk 0:00:16]} 50. Kd2 {[%clk 0:00:04]}  a1=Q {[%clk 0:00:17]} 0-1


[Site "https://www.chess.com"]

[Event "Titled Tuesday Blitz January 10 Early 2023"]
[White "Hoffmann, Asa"]
[Black "Mitrovic, Darko R"]
[WhiteFideId "2001470"]
[BlackFideId "927023"]
[WhiteElo "2185"]
[BlackElo "2220"]
[Result "0-1"]
[Round "05"]
[TimeControl "180+2"]
[Date "2023.01.10"]
[WhiteClock "0:00:14"]
[BlackClock "0:00:03"]

1. d4 {[%clk 0:02:58]}  Nf6 {[%clk 0:02:51]} 2. Bg5 {[%clk 0:02:50]}  e6 {[%clk 0:02:50]} 3. Nd2 {[%clk 0:02:46]}  Be7 {[%clk 0:02:48]} 4. e3 {[%clk 0:02:46]}  d5 {[%clk 0:02:46]} 5. Bd3 {[%clk 0:02:33]}  c5 {[%clk 0:02:43]} 6. c3 {[%clk 0:02:33]}  Nc6 {[%clk 0:02:42]} 7. f4 {[%clk 0:02:33]}  Nd7 {[%clk 0:02:23]} 8. Ngf3 {[%clk 0:02:31]}  Bxg5 {[%clk 0:02:10]} 9. Nxg5 {[%clk 0:02:30]}  Nf6 {[%clk 0:01:56]} 10. O-O {[%clk 0:02:26]}  Qe7 {[%clk 0:01:49]} 11. e4 {[%clk 0:02:20]}  cxd4 {[%clk 0:01:43]} 12. cxd4 {[%clk 0:02:14]}  Nxd4 {[%clk 0:01:26]} 13. exd5 {[%clk 0:02:05]}  Nxd5 {[%clk 0:01:23]} 14. Nde4 {[%clk 0:01:52]}  O-O {[%clk 0:01:13]} 15. Nc3 {[%clk 0:01:28]}  g6 {[%clk 0:00:35]} 16. Bxg6 {[%clk 0:01:20]}  fxg6 {[%clk 0:00:20]} 17. Qxd4 {[%clk 0:01:19]}  Nxc3 {[%clk 0:00:11]} 18. Qxc3 {[%clk 0:01:17]}  Bd7 {[%clk 0:00:11]} 19. Rae1 {[%clk 0:01:11]}  Rae8 {[%clk 0:00:08]} 20. Re5 {[%clk 0:01:07]}  Bc6 {[%clk 0:00:06]} 21. g3 {[%clk 0:01:06]}  Qf6 {[%clk 0:00:06]} 22. Rfe1 {[%clk 0:01:03]}  h6 {[%clk 0:00:04]} 23. Ne4 {[%clk 0:00:51]}  Bxe4 {[%clk 0:00:04]} 24. R1xe4 {[%clk 0:00:49]}  Rf7 {[%clk 0:00:04]} 25. Qe3 {[%clk 0:00:48]}  Rfe7 {[%clk 0:00:03]} 26. Kg2 {[%clk 0:00:47]}  h5 {[%clk 0:00:03]} 27. Qxa7 {[%clk 0:00:44]}  Kf7 {[%clk 0:00:03]} 28. Qe3 {[%clk 0:00:43]}  Rd7 {[%clk 0:00:03]} 29. h4 {[%clk 0:00:39]}  Rd6 {[%clk 0:00:03]} 30. Qf3 {[%clk 0:00:33]}  Red8 {[%clk 0:00:03]} 31. Re2 {[%clk 0:00:33]}  Rd3 {[%clk 0:00:03]} 32. Qxb7+ {[%clk 0:00:32]}  R8d7 {[%clk 0:00:03]} 33. Qe4 {[%clk 0:00:31]}  Rd2 {[%clk 0:00:02]} 34. Qe3 {[%clk 0:00:26]}  Rxe2+ {[%clk 0:00:02]} 35. Qxe2 {[%clk 0:00:25]}  Qe7 {[%clk 0:00:03]} 36. Re3 {[%clk 0:00:21]}  Qd6 {[%clk 0:00:03]} 37. Kf2 {[%clk 0:00:19]}  Qd5 {[%clk 0:00:03]} 38. b3 {[%clk 0:00:18]}  Qh1 {[%clk 0:00:03]} 39. Qf3 {[%clk 0:00:17]}  Rd1 {[%clk 0:00:03]} 40. Re2 {[%clk 0:00:14]}  Qg1# {[%clk 0:00:03]} 0-1


[Site "https://www.chess.com"]

[Event "Titled Tuesday Blitz January 10 Early 2023"]
[White "Ghosh, Chanchal Kumer"]
[Black "Kaplan, Avi Harrison"]
[WhiteFideId "10201858"]
[BlackFideId "30934559"]
[WhiteElo "2020"]
[BlackElo "2146"]
[Result "0-1"]
[Round "05"]
[TimeControl "180+2"]
[Date "2023.01.10"]
[WhiteClock "0:00:29"]
[BlackClock "0:00:14"]

1. e4 {[%clk 0:03:00]}  d6 {[%clk 0:02:50]} 2. Nf3 {[%clk 0:02:57]}  Nf6 {[%clk 0:02:46]} 3. Nc3 {[%clk 0:02:54]}  e5 {[%clk 0:02:45]} 4. h3 {[%clk 0:02:49]}  Be7 {[%clk 0:02:44]} 5. d4 {[%clk 0:02:49]}  Nbd7 {[%clk 0:02:43]} 6. Bc4 {[%clk 0:02:36]}  h6 {[%clk 0:02:39]} 7. a3 {[%clk 0:02:36]}  O-O {[%clk 0:02:39]} 8. O-O {[%clk 0:02:35]}  c6 {[%clk 0:02:39]} 9. Bb3 {[%clk 0:02:33]}  Qc7 {[%clk 0:02:38]} 10. Re1 {[%clk 0:02:20]}  Rd8 {[%clk 0:02:32]} 11. Be3 {[%clk 0:02:17]}  Nf8 {[%clk 0:02:31]} 12. Qd2 {[%clk 0:02:15]}  Ng6 {[%clk 0:02:30]} 13. Bxh6 {[%clk 0:02:08]}  gxh6 {[%clk 0:02:31]} 14. Qxh6 {[%clk 0:02:06]}  Bf8 {[%clk 0:02:16]} 15. Qxg6+ {[%clk 0:02:05]}  Bg7 {[%clk 0:01:59]} 16. dxe5 {[%clk 0:01:54]}  d5 {[%clk 0:01:34]} 17. Qg5 {[%clk 0:01:53]}  Nxe4 {[%clk 0:01:30]} 18. Nxe4 {[%clk 0:01:51]}  dxe4 {[%clk 0:01:31]} 19. Rxe4 {[%clk 0:01:43]}  Re8 {[%clk 0:01:23]} 20. Qh5 {[%clk 0:01:18]}  Be6 {[%clk 0:01:13]} 21. Ng5 {[%clk 0:01:14]}  Bxb3 {[%clk 0:01:10]} 22. cxb3 {[%clk 0:00:59]}  Rxe5 {[%clk 0:01:05]} 23. Rae1 {[%clk 0:00:52]}  Rae8 {[%clk 0:00:57]} 24. Rxe5 {[%clk 0:00:43]}  Rxe5 {[%clk 0:00:56]} 25. Rxe5 {[%clk 0:00:43]}  Bxe5 {[%clk 0:00:52]} 26. g3 {[%clk 0:00:37]}  Qe7 {[%clk 0:00:38]} 27. h4 {[%clk 0:00:25]}  Bd4 {[%clk 0:00:38]} 28. Qh7+ {[%clk 0:00:23]}  Kf8 {[%clk 0:00:38]} 29. Qf5 {[%clk 0:00:20]}  Bxb2 {[%clk 0:00:30]} 30. h5 {[%clk 0:00:19]}  Bc1 {[%clk 0:00:24]} 31. Nh7+ {[%clk 0:00:18]}  Kg7 {[%clk 0:00:23]} 32. h6+ {[%clk 0:00:15]}  Bxh6 {[%clk 0:00:23]} 33. g4 {[%clk 0:00:14]}  Bd2 {[%clk 0:00:13]} 34. g5 {[%clk 0:00:14]}  Bc3 {[%clk 0:00:09]} 35. Nf6 {[%clk 0:00:12]}  Bxf6 {[%clk 0:00:09]} 36. gxf6+ {[%clk 0:00:13]}  Qxf6 {[%clk 0:00:10]} 37. Qg4+ {[%clk 0:00:14]}  Qg6 {[%clk 0:00:10]} 38. Qxg6+ {[%clk 0:00:14]}  Kxg6 {[%clk 0:00:11]} 39. Kg2 {[%clk 0:00:15]}  Kf5 {[%clk 0:00:11]} 40. Kf3 {[%clk 0:00:16]}  Ke5 {[%clk 0:00:11]} 41. Ke3 {[%clk 0:00:17]}  Kd5 {[%clk 0:00:10]} 42. f4 {[%clk 0:00:18]}  f5 {[%clk 0:00:10]} 43. Kd3 {[%clk 0:00:19]}  c5 {[%clk 0:00:09]} 44. b4 {[%clk 0:00:20]}  c4+ {[%clk 0:00:09]} 45. Kc3 {[%clk 0:00:20]}  b5 {[%clk 0:00:09]} 46. a4 {[%clk 0:00:20]}  a6 {[%clk 0:00:10]} 47. axb5 {[%clk 0:00:21]}  axb5 {[%clk 0:00:11]} 48. Kd2 {[%clk 0:00:21]}  Ke4 {[%clk 0:00:11]} 49. Ke2 {[%clk 0:00:22]}  Kxf4 {[%clk 0:00:12]} 50. Kd2 {[%clk 0:00:23]}  Ke4 {[%clk 0:00:12]} 51. Kc3 {[%clk 0:00:24]}  f4 {[%clk 0:00:13]} 52. Kd2 {[%clk 0:00:25]}  Kf3 {[%clk 0:00:13]} 53. Kc2 {[%clk 0:00:25]}  Ke2 {[%clk 0:00:14]} 54. Kc3 {[%clk 0:00:26]}  f3 {[%clk 0:00:15]} 55. Kd4 {[%clk 0:00:27]}  f2 {[%clk 0:00:16]} 56. Kc5 {[%clk 0:00:28]}  f1=Q {[%clk 0:00:15]} 57. Kxb5 {[%clk 0:00:29]}  c3 {[%clk 0:00:16]} 58. Kc5 {[%clk 0:00:30]}  c2 {[%clk 0:00:16]} 59. b5 {[%clk 0:00:31]}  c1=Q+ {[%clk 0:00:16]} 60. Kb6 {[%clk 0:00:31]}  Qf6+ {[%clk 0:00:15]} 61. Ka5 {[%clk 0:00:32]}  Qd6 {[%clk 0:00:14]} 62. b6 {[%clk 0:00:32]}  Qcc5+ {[%clk 0:00:15]} 63. Ka4 {[%clk 0:00:30]}  Qdc6+ {[%clk 0:00:15]} 64. Kb3 {[%clk 0:00:29]}  Q6xb6+ {[%clk 0:00:14]} 0-1


[Site "https://www.chess.com"]

[Event "Titled Tuesday Blitz January 10 Early 2023"]
[White "Winkels, Marcel"]
[Black "Guimaraes, Wagner Peixoto"]
[WhiteFideId "1003887"]
[BlackFideId "2100940"]
[WhiteElo "1960"]
[BlackElo "2194"]
[Result "0-1"]
[Round "05"]
[TimeControl "180+2"]
[Date "2023.01.10"]
[WhiteClock "0:00:10"]
[BlackClock "0:00:29"]

1. d4 {[%clk 0:03:00]}  Nf6 {[%clk 0:02:58]} 2. Bf4 {[%clk 0:02:59]}  c5 {[%clk 0:02:57]} 3. d5 {[%clk 0:02:58]}  d6 {[%clk 0:02:56]} 4. Nc3 {[%clk 0:02:58]}  g6 {[%clk 0:02:56]} 5. e4 {[%clk 0:02:58]}  Bg7 {[%clk 0:02:57]} 6. Qd2 {[%clk 0:02:54]}  O-O {[%clk 0:02:56]} 7. Bh6 {[%clk 0:02:52]}  e6 {[%clk 0:02:47]} 8. Bxg7 {[%clk 0:02:50]}  Kxg7 {[%clk 0:02:48]} 9. O-O-O {[%clk 0:02:49]}  exd5 {[%clk 0:02:46]} 10. exd5 {[%clk 0:02:48]}  a6 {[%clk 0:02:45]} 11. h4 {[%clk 0:02:45]}  h5 {[%clk 0:02:44]} 12. Nf3 {[%clk 0:02:41]}  b5 {[%clk 0:02:43]} 13. Kb1 {[%clk 0:02:39]}  b4 {[%clk 0:02:43]} 14. Ne2 {[%clk 0:02:38]}  Bb7 {[%clk 0:02:32]} 15. Nf4 {[%clk 0:02:38]}  Nbd7 {[%clk 0:02:29]} 16. Bd3 {[%clk 0:02:22]}  Nb6 {[%clk 0:02:21]} 17. Bxg6 {[%clk 0:02:18]}  Nbxd5 {[%clk 0:02:14]} 18. Nxd5 {[%clk 0:02:05]}  fxg6 {[%clk 0:01:57]} 19. Ng5 {[%clk 0:01:55]}  Bxd5 {[%clk 0:01:54]} 20. Qxd5 {[%clk 0:01:54]}  Nxd5 {[%clk 0:01:45]} 21. Ne6+ {[%clk 0:01:54]}  Kh7 {[%clk 0:01:33]} 22. Nxd8 {[%clk 0:01:52]}  Raxd8 {[%clk 0:01:33]} 23. Rxd5 {[%clk 0:01:53]}  Rxf2 {[%clk 0:01:33]} 24. g4 {[%clk 0:01:49]}  hxg4 {[%clk 0:01:31]} 25. h5 {[%clk 0:01:46]}  g3 {[%clk 0:01:22]} 26. hxg6+ {[%clk 0:01:44]}  Kxg6 {[%clk 0:01:22]} 27. Rg1 {[%clk 0:01:44]}  g2 {[%clk 0:01:22]} 28. Rdd1 {[%clk 0:01:43]}  d5 {[%clk 0:01:11]} 29. b3 {[%clk 0:01:40]}  d4 {[%clk 0:01:02]} 30. Kb2 {[%clk 0:01:33]}  Re8 {[%clk 0:00:57]} 31. Rd3 {[%clk 0:01:33]}  Ree2 {[%clk 0:00:55]} 32. Rc1 {[%clk 0:01:28]}  Rxc2+ {[%clk 0:00:46]} 33. Rxc2 {[%clk 0:00:32]}  Rxc2+ {[%clk 0:00:38]} 34. Kxc2 {[%clk 0:00:31]}  g1=Q {[%clk 0:00:39]} 35. Rd2 {[%clk 0:00:28]}  Qe3 {[%clk 0:00:38]} 36. Rg2+ {[%clk 0:00:28]}  Kf5 {[%clk 0:00:38]} 37. Rg8 {[%clk 0:00:25]}  Qc3+ {[%clk 0:00:36]} 38. Kb1 {[%clk 0:00:25]}  d3 {[%clk 0:00:35]} 39. Rg5+ {[%clk 0:00:22]}  Kxg5 {[%clk 0:00:34]} 40. a4 {[%clk 0:00:16]}  Qc2+ {[%clk 0:00:33]} 41. Ka1 {[%clk 0:00:13]}  Qc3+ {[%clk 0:00:31]} 42. Ka2 {[%clk 0:00:12]}  d2 {[%clk 0:00:31]} 43. a5 {[%clk 0:00:11]}  Qc2+ {[%clk 0:00:29]} 44. Ka1 {[%clk 0:00:10]}  d1=Q# {[%clk 0:00:29]} 0-1


[Site "https://www.chess.com"]

[Event "Titled Tuesday Blitz January 10 Early 2023"]
[White "Mendez Machado, Andre"]
[Black "Dilmukhametov, Artur"]
[WhiteFideId "6603793"]
[BlackFideId "24179922"]
[WhiteElo "1974"]
[BlackElo "2276"]
[Result "1-0"]
[Round "05"]
[TimeControl "180+2"]
[Date "2023.01.10"]
[WhiteClock "0:02:27"]
[BlackClock "0:02:12"]

1. e4 {[%clk 0:03:00]}  e6 {[%clk 0:02:59]} 2. d4 {[%clk 0:03:00]}  d5 {[%clk 0:03:00]} 3. Nd2 {[%clk 0:03:00]}  Nf6 {[%clk 0:02:59]} 4. e5 {[%clk 0:02:59]}  Nfd7 {[%clk 0:02:59]} 5. Ngf3 {[%clk 0:02:59]}  c5 {[%clk 0:03:00]} 6. c3 {[%clk 0:02:57]}  Nc6 {[%clk 0:03:00]} 7. Bd3 {[%clk 0:02:57]}  cxd4 {[%clk 0:03:01]} 8. cxd4 {[%clk 0:02:58]}  f6 {[%clk 0:03:00]} 9. O-O {[%clk 0:02:45]}  fxe5 {[%clk 0:02:56]} 10. Nxe5 {[%clk 0:02:36]}  Bd6 {[%clk 0:02:53]} 11. Qh5+ {[%clk 0:02:35]}  Ke7 {[%clk 0:02:12]} 12. Qf7# {[%clk 0:02:27]} 1-0


[Site "https://www.chess.com"]

[Event "Titled Tuesday Blitz January 10 Early 2023"]
[White "Kiseleva, Arina"]
[Black "Player, Edmund C"]
[WhiteFideId "4164989"]
[BlackFideId "406520"]
[WhiteElo "1962"]
[BlackElo "2204"]
[Result "0-1"]
[Round "05"]
[TimeControl "180+2"]
[Date "2023.01.10"]
[WhiteClock "0:00:08"]
[BlackClock "0:00:36"]

1. d4 {[%clk 0:03:00]}  Nf6 {[%clk 0:02:58]} 2. Nf3 {[%clk 0:03:00]}  d5 {[%clk 0:02:56]} 3. e3 {[%clk 0:02:59]}  c5 {[%clk 0:02:55]} 4. Bd3 {[%clk 0:02:58]}  Nc6 {[%clk 0:02:53]} 5. O-O {[%clk 0:02:56]}  cxd4 {[%clk 0:02:51]} 6. exd4 {[%clk 0:02:56]}  Bg4 {[%clk 0:02:51]} 7. c3 {[%clk 0:02:53]}  e6 {[%clk 0:02:51]} 8. Nbd2 {[%clk 0:02:51]}  Bd6 {[%clk 0:02:49]} 9. h3 {[%clk 0:02:48]}  Bh5 {[%clk 0:02:49]} 10. Qb3 {[%clk 0:02:44]}  Qc7 {[%clk 0:02:42]} 11. Re1 {[%clk 0:02:37]}  O-O {[%clk 0:02:41]} 12. a4 {[%clk 0:02:36]}  Rfe8 {[%clk 0:02:14]} 13. a5 {[%clk 0:02:18]}  Nxa5 {[%clk 0:02:09]} 14. Qa4 {[%clk 0:02:10]}  b6 {[%clk 0:02:05]} 15. Ne5 {[%clk 0:01:43]}  Bxe5 {[%clk 0:01:59]} 16. dxe5 {[%clk 0:01:42]}  Nd7 {[%clk 0:01:51]} 17. Qf4 {[%clk 0:01:26]}  Bg6 {[%clk 0:01:40]} 18. Bxg6 {[%clk 0:01:21]}  fxg6 {[%clk 0:01:30]} 19. Qg3 {[%clk 0:01:08]}  Rf8 {[%clk 0:01:23]} 20. b4 {[%clk 0:01:01]}  Nc6 {[%clk 0:01:18]} 21. f4 {[%clk 0:00:55]}  Ne7 {[%clk 0:01:16]} 22. Nb3 {[%clk 0:00:41]}  Nf5 {[%clk 0:01:12]} 23. Qd3 {[%clk 0:00:40]}  Rfc8 {[%clk 0:01:09]} 24. Bd2 {[%clk 0:00:38]}  a5 {[%clk 0:01:03]} 25. bxa5 {[%clk 0:00:32]}  bxa5 {[%clk 0:01:04]} 26. Ra4 {[%clk 0:00:30]}  Rcb8 {[%clk 0:00:58]} 27. Ra3 {[%clk 0:00:26]}  Rxb3 {[%clk 0:00:55]} 28. Rxb3 {[%clk 0:00:26]}  Nc5 {[%clk 0:00:55]} 29. Qb5 {[%clk 0:00:24]}  Nxb3 {[%clk 0:00:51]} 30. Qxb3 {[%clk 0:00:25]}  a4 {[%clk 0:00:51]} 31. Qa3 {[%clk 0:00:21]}  Qb6+ {[%clk 0:00:47]} 32. Kh2 {[%clk 0:00:20]}  Qf2 {[%clk 0:00:46]} 33. Rd1 {[%clk 0:00:16]}  Nh4 {[%clk 0:00:35]} 34. Rg1 {[%clk 0:00:10]}  Nf3+ {[%clk 0:00:35]} 35. Kh1 {[%clk 0:00:08]}  Qxg1# {[%clk 0:00:36]} 0-1


[Site "https://www.chess.com"]